fUST/lending_fUST_20250211
["ID","MTS","AMOUNT","RATE_DAILY","PERIOD"]
[352660021,1739219244605,-500.0,0.00011095,2]
[352660022,1739219244627,-500.0,0.00011095,2]
[352660023,1739219244651,-500.0,0.00011095,2]
[352660024,1739219244674,-564.31,0.00011095,2]
[352660025,1739219244696,-500.0,0.00011095,2]
[352660026,1739219244717,-500.0,0.00011095,2]
[352660027,1739219244739,-500.0,0.00011095,2]
[352660028,1739219244762,-500.0,0.00011095,2]
[352660029,1739219244785,-500.0,0.00011095,2]
[352660030,1739219244808,-500.0,0.00011095,2]
[352660031,1739219244830,-500.0,0.00011095,2]
[352660032,1739219244854,-500.0,0.00011095,2]
[352660033,1739219244877,-500.0,0.00011095,2]
[352660034,1739219244901,-500.0,0.00011095,2]
[352660035,1739219244925,-500.0,0.00011095,2]
[352660036,1739219244948,-500.0,0.00011095,2]
[352660037,1739219244970,-500.0,0.00011095,2]
[352660038,1739219244993,-500.0,0.00011095,2]
[352660039,1739219245018,-500.0,0.00011095,2]
[352660040,1739219245042,-500.0,0.00011095,2]
[352660041,1739219245064,-500.0,0.00011095,2]
[352660042,1739219245087,-500.0,0.00011095,2]
[352660043,1739219245111,-500.0,0.00011095,2]
[352660044,1739219245230,-500.0,0.00011095,2]
[352660045,1739219245258,-500.0,0.00011095,2]
[352660046,1739219245283,-500.0,0.00011095,2]
[352660047,1739219245306,-500.0,0.00011095,2]
[352660048,1739219245333,-500.0,0.00011095,2]
[352660049,1739219245357,-500.0,0.00011095,2]
[352660050,1739219245380,-500.0,0.00011095,2]
[352660051,1739219245404,-500.0,0.00011095,2]
[352660052,1739219245427,-500.0,0.00011095,2]
[352660053,1739219245450,-500.0,0.00011095,2]
[352660054,1739219245474,-500.0,0.00011095,2]
[352660055,1739219245497,-1213.78,0.00011095,2]
[352660056,1739219245522,-500.0,0.00011095,2]
[352660057,1739219245544,-500.0,0.00011095,2]
[352660058,1739219245566,-500.0,0.00011095,2]
[352660059,1739219245587,-500.0,0.00011095,2]
[352660060,1739219245610,-500.0,0.00011095,2]
[352660061,1739219245632,-500.0,0.00011095,2]
[352660062,1739219245655,-500.0,0.00011095,2]
[352660063,1739219245678,-500.0,0.00011095,2]
[352660064,1739219245701,-500.0,0.00011095,2]
[352660065,1739219245725,-500.0,0.00011095,2]
[352660066,1739219245747,-500.0,0.00011095,2]
[352660067,1739219245770,-500.0,0.00011095,2]
[352660068,1739219245793,-500.0,0.00011095,2]
[352660069,1739219245824,-655.63,0.00011095,2]
[352660070,1739219245848,-659.07,0.00011095,2]
[352660071,1739219245872,-508.51,0.00011095,2]
[352660072,1739219245895,-500.0,0.00011095,2]
[352660073,1739219245918,-500.0,0.00011095,2]
[352660074,1739219245942,-500.0,0.00011095,2]
[352660075,1739219245967,-1561.2,0.00011095,2]
[352660076,1739219245993,-500.0,0.00011095,2]
[352660077,1739219246017,-500.0,0.00011095,2]
[352660078,1739219246041,-500.0,0.00011095,2]
[352660079,1739219246068,-500.0,0.00011095,2]
[352660080,1739219246092,-500.0,0.00011095,2]
[352660081,1739219246115,-500.0,0.00011095,2]
[352660082,1739219246139,-500.0,0.00011095,2]
[352660083,1739219246164,-687.08,0.00011095,2]
[352660084,1739219246186,-500.0,0.00011095,2]
[352660085,1739219246209,-500.0,0.00011095,2]
[352660086,1739219246234,-688.62,0.00011095,2]
[352660087,1739219246262,-816.41,0.00011095,2]
[352660088,1739219246287,-500.0,0.00011095,2]
[352660089,1739219246310,-500.0,0.00011095,2]
[352660090,1739219246336,-6312.45,0.00011095,2]
[352660091,1739219246358,-500.0,0.00011095,2]
[352660092,1739219246383,-500.0,0.00011095,2]
[352660093,1739219246408,-500.0,0.00011095,2]
[352660094,1739219246431,-500.0,0.00011095,2]
[352660095,1739219246455,-500.0,0.00011131,2]
[352660096,1739219246479,-500.0,0.00011131,2]
[352660097,1739219246502,-1454.15,0.00011131,2]
[352660098,1739219246525,-1454.15,0.00011131,2]
[352660099,1739219246549,-500.0,0.00011231,2]
[352660100,1739219246572,-1454.15,0.00011231,2]
[352660101,1739219246594,-500.0,0.00011232,2]
[352660102,1739219246616,-500.0,0.00011232,2]
[352660103,1739219246639,-500.0,0.00011232,2]
[352660104,1739219246662,-500.0,0.00011232,2]
[352660105,1739219246685,-621.86950702,0.00011232,2]
[352660106,1739219246708,-500.0,0.00011232,2]
[352660107,1739219246740,-500.0,0.00011232,2]
[352660108,1739219246765,-500.0,0.00011232,2]
[352660109,1739219246790,-500.0,0.00011232,2]
[352660110,1739219246816,-161.7851433,0.00011232,2]
[352660111,1739219246839,-403.4,0.00011232,2]
[352660112,1739219246862,-500.0,0.00011232,2]
[352660113,1739219246885,-500.0,0.00011232,2]
[352660114,1739219246911,-500.0,0.00011232,2]
[352660115,1739219246935,-500.0,0.00011232,2]
[352660116,1739219246960,-500.0,0.00011232,2]
[352660117,1739219246984,-500.0,0.00011232,2]
[352660118,1739219247010,-500.0,0.00011232,2]
[352660119,1739219247035,-500.0,0.00011232,2]
[352660120,1739219247060,-500.0,0.00011232,2]
[352660121,1739219247085,-500.0,0.00011232,2]
[352660122,1739219247109,-500.0,0.00011232,2]
[352660123,1739219247133,-500.0,0.00011232,2]
[352660124,1739219247159,-500.0,0.00011232,2]
[352660125,1739219247183,-500.0,0.00011232,2]
[352660126,1739219247209,-1213.78,0.00011232,2]
[352660127,1739219247234,-500.0,0.00011232,2]
[352660128,1739219247264,-500.0,0.00011232,2]
[352660129,1739219247289,-500.0,0.00011232,2]
[352660130,1739219247312,-500.0,0.00011232,2]
[352660131,1739219247336,-500.0,0.00011232,2]
[352660132,1739219247360,-500.0,0.00011232,2]
[352660133,1739219247384,-500.0,0.00011232,2]
[352660134,1739219247409,-500.0,0.00011232,2]
[352660135,1739219247432,-500.0,0.00011232,2]
[352660136,1739219247456,-500.0,0.00011232,2]
[352660137,1739219247479,-500.0,0.00011232,2]
[352660138,1739219247503,-655.63,0.00011232,2]
[352660139,1739219247527,-659.07,0.00011232,2]
[352660140,1739219247551,-508.51,0.00011232,2]
[352660141,1739219247573,-500.0,0.00011232,2]
[352660142,1739219247595,-500.0,0.00011232,2]
[352660143,1739219247619,-500.0,0.00011232,2]
[352660144,1739219247642,-1561.2,0.00011232,2]
[352660145,1739219247667,-232.73,0.00011232,2]
[352660146,1739219247689,-500.0,0.00011232,2]
[352660147,1739219247711,-500.0,0.00011232,2]
[352660148,1739219247733,-500.0,0.00011232,2]
[352660149,1739219247756,-500.0,0.00011232,2]
[352660150,1739219247779,-500.0,0.00011232,2]
[352660151,1739219247802,-500.0,0.00011232,2]
[352660152,1739219247827,-687.08,0.00011232,2]
[352660153,1739219247849,-500.0,0.00011232,2]
[352660154,1739219247874,-500.0,0.00011232,2]
[352660155,1739219247899,-688.62,0.00011232,2]
[352660156,1739219247924,-816.41,0.00011232,2]
[352660157,1739219247948,-500.0,0.00011232,2]
[352660158,1739219247972,-500.0,0.00011232,2]
[352660159,1739219247995,-6312.45,0.00011232,2]
[352660160,1739219248017,-500.0,0.00011232,2]
[352660161,1739219248041,-500.0,0.00011232,2]
[352660162,1739219248065,-500.0,0.00011232,2]
[352660163,1739219248087,-500.0,0.00011232,2]
[352660164,1739219248109,-500.0,0.00011348,2]
[352660165,1739219248130,-500.0,0.00011348,2]
[352660166,1739219248155,-500.0,0.00011368,2]
[352660167,1739219248275,-1454.15,0.00011368,2]
[352660168,1739219248299,-500.0,0.00011368,2]
[352660169,1739219248324,-446.21862624,0.00011368,2]
[352660170,1739219248347,-500.0,0.00011369,2]
[352660171,1739219248371,-500.0,0.00011369,2]
[352660172,1739219248395,-501.69925844,0.00011369,2]
[352660173,1739219248420,-500.0,0.00011369,2]
[352660174,1739219248443,-500.0,0.00011369,2]
[352660175,1739219248467,-500.0,0.00011369,2]
[352660176,1739219248489,-500.0,0.00011369,2]
[352660177,1739219248512,-500.0,0.00011369,2]
[352660178,1739219248536,-500.0,0.00011369,2]
[352660179,1739219248559,-500.0,0.00011369,2]
[352660180,1739219248582,-533.38575241,0.00011369,2]
[352660181,1739219248605,-500.0,0.00011369,2]
[352660182,1739219248629,-500.0,0.00011369,2]
[352660183,1739219248653,-500.0,0.00011369,2]
[352660184,1739219248681,-500.0,0.00011369,2]
[352660185,1739219248705,-500.0,0.00011369,2]
[352660186,1739219248728,-500.0,0.00011369,2]
[352660187,1739219248751,-500.0,0.00011369,2]
[352660188,1739219248773,-500.0,0.00011369,2]
[352660189,1739219248797,-1213.78,0.00011369,2]
[352660190,1739219248820,-500.0,0.00011369,2]
[352660191,1739219248842,-500.0,0.00011369,2]
[352660192,1739219248865,-500.0,0.00011369,2]
[352660193,1739219248888,-500.0,0.00011369,2]
[352660194,1739219248911,-500.0,0.00011369,2]
[352660195,1739219248934,-500.0,0.00011369,2]
[352660196,1739219248956,-500.0,0.00011369,2]
[352660197,1739219248978,-500.0,0.00011369,2]
[352660198,1739219249001,-500.0,0.00011369,2]
[352660199,1739219249023,-500.0,0.00011369,2]
[352660200,1739219249046,-500.0,0.00011369,2]
[352660201,1739219249072,-655.63,0.00011369,2]
[352660202,1739219249095,-659.07,0.00011369,2]
[352660203,1739219249119,-508.51,0.00011369,2]
[352660204,1739219249141,-500.0,0.00011369,2]
[352660205,1739219249168,-500.0,0.00011369,2]
[352660206,1739219249193,-1561.2,0.00011369,2]
[352660207,1739219249216,-500.0,0.00011369,2]
[352660208,1739219249239,-500.0,0.00011369,2]
[352660209,1739219249273,-500.0,0.00011369,2]
[352660210,1739219249298,-500.0,0.00011369,2]
[352660211,1739219249322,-500.0,0.00011369,2]
[352660212,1739219249345,-500.0,0.00011369,2]
[352660213,1739219249369,-687.08,0.00011369,2]
[352660214,1739219249392,-316.72844018,0.00011369,2]
[352660215,1739219249418,-500.0,0.00011369,2]
[352660216,1739219249443,-688.62,0.00011369,2]
[352660217,1739219249468,-816.41,0.00011369,2]
[352660218,1739219249493,-500.0,0.00011369,2]
[352660219,1739219249516,-500.0,0.00011369,2]
[352660220,1739219249540,-6312.45,0.00011369,2]
[352660221,1739219249562,-500.0,0.00011369,2]
[352660222,1739219249588,-500.0,0.00011369,2]
[352660223,1739219249611,-500.0,0.00011369,2]
[352660224,1739219249635,-500.0,0.00011369,2]
[352660225,1739219249656,-500.0,0.000114,2]
[352660226,1739219249679,-372.82095085,0.00011418,2]
[352660227,1739219249701,-500.0,0.00011418,2]
[352660228,1739219249723,-500.0,0.00011489,2]
[352660229,1739219249746,-1454.15,0.00011504,2]
[352660230,1739219249770,-500.0,0.00011505,2]
[352660231,1739219249792,-500.0,0.00011505,2]
[352660232,1739219249814,-500.0,0.00011505,2]
[352660233,1739219249836,-500.0,0.00011505,2]
[352660234,1739219249859,-500.0,0.00011505,2]
[352660235,1739219249884,-500.0,0.00011505,2]
[352660236,1739219249909,-2975.74,0.00011505,2]
[352660237,1739219249933,-1454.15,0.00011505,2]
[352660238,1739219249957,-500.0,0.00011505,2]
[352660239,1739219249981,-500.0,0.00011505,2]
[352660240,1739219250006,-500.0,0.00011505,2]
[352660241,1739219250029,-500.0,0.00011505,2]
[352660242,1739219250051,-500.0,0.00011505,2]
[352660243,1739219250075,-3081.78,0.00011505,2]
[352660244,1739219250099,-500.0,0.00011505,2]
[352660245,1739219250122,-458.56167589,0.00011506,2]
[352660246,1739219250145,-537.92435508,0.00011506,2]
[352660247,1739219250169,-517.32,0.00011506,2]
[352660248,1739219250192,-500.0,0.00011506,2]
[352660249,1739219250216,-500.0,0.00011506,2]
[352660250,1739219250244,-500.0,0.00011506,2]
[352660251,1739219250270,-500.0,0.00011506,2]
[352660252,1739219250294,-500.0,0.00011506,2]
[352660253,1739219250318,-500.0,0.00011506,2]
[352660254,1739219250343,-500.0,0.00011506,2]
[352660255,1739219250367,-500.0,0.00011506,2]
[352660256,1739219250391,-500.0,0.00011506,2]
[352660257,1739219250417,-500.0,0.00011506,2]
[352660258,1739219250440,-500.0,0.00011506,2]
[352660259,1739219250464,-500.0,0.00011506,2]
[352660260,1739219250487,-1213.78,0.00011506,2]
[352660261,1739219250510,-500.0,0.00011506,2]
[352660262,1739219250532,-500.0,0.00011506,2]
[352660263,1739219250554,-441.69539092,0.00011506,2]
[352660264,1739219250578,-500.0,0.00011506,2]
[352660265,1739219250600,-500.0,0.00011506,2]
[352660266,1739219250625,-500.0,0.00011506,2]
[352660267,1739219250649,-500.0,0.00011506,2]
[352660268,1739219250672,-500.0,0.00011506,2]
[352660269,1739219250695,-502.90780795,0.00011506,2]
[352660270,1739219250717,-500.0,0.00011506,2]
[352660271,1739219250741,-655.63,0.00011506,2]
[352660272,1739219250765,-659.07,0.00011506,2]
[352660273,1739219250789,-508.51,0.00011506,2]
[352660274,1739219250813,-500.0,0.00011506,2]
[352660275,1739219250836,-500.0,0.00011506,2]
[352660276,1739219250861,-1561.2,0.00011506,2]
[352660277,1739219250885,-500.0,0.00011506,2]
[352660278,1739219250909,-500.0,0.00011506,2]
[352660279,1739219250932,-500.0,0.00011506,2]
[352660280,1739219250955,-500.0,0.00011506,2]
[352660281,1739219250979,-500.0,0.00011506,2]
[352660282,1739219251005,-500.0,0.00011506,2]
[352660283,1739219251030,-687.08,0.00011506,2]
[352660284,1739219251055,-500.0,0.00011506,2]
[352660285,1739219251206,-688.62,0.00011506,2]
[352660286,1739219251232,-816.41,0.00011506,2]
[352660287,1739219251262,-500.0,0.00011506,2]
[352660288,1739219251287,-512.21,0.00011506,2]
[352660289,1739219251312,-6312.45,0.00011506,2]
[352660290,1739219251340,-500.0,0.00011506,2]
[352660291,1739219251365,-500.0,0.00011506,2]
[352660292,1739219251391,-500.0,0.00011506,2]
[352660293,1739219251415,-504.43247123,0.00011521,2]
[352660294,1739219251440,-500.0,0.00011642,2]
[352660295,1739219251464,-166.91645316,0.00011642,2]
[352660296,1739219251488,-500.0,0.00011642,2]
[352660297,1739219251513,-500.0,0.00011642,2]
[352660298,1739219251540,-2975.74,0.00011642,2]
[352660299,1739219251565,-500.0,0.00011642,2]
[352660300,1739219251589,-500.0,0.00011642,2]
[352660301,1739219251615,-3081.78,0.00011642,2]
[352660302,1739219251639,-500.0,0.00011642,2]
[352660303,1739219251665,-500.0,0.00011643,2]
[352660304,1739219251690,-296.77,0.00011643,2]
[352660305,1739219251714,-500.0,0.00011643,2]
[352660306,1739219251739,-500.0,0.00011643,2]
[352660307,1739219251765,-500.0,0.00011643,2]
[352660308,1739219251789,-500.0,0.00011643,2]
[352660309,1739219251814,-500.0,0.00011643,2]
[352660310,1739219251838,-500.0,0.00011643,2]
[352660311,1739219251862,-500.0,0.00011643,2]
[352660312,1739219251896,-500.0,0.00011643,2]
[352660313,1739219251924,-1213.78,0.00011643,2]
[352660314,1739219251949,-522.4641358,0.00011643,2]
[352660315,1739219251975,-557.95445982,0.00011643,2]
[352660316,1739219252002,-500.0,0.00011643,2]
[352660317,1739219252029,-500.0,0.00011643,2]
[352660318,1739219252055,-500.0,0.00011643,2]
[352660319,1739219252079,-500.0,0.00011643,2]
[352660320,1739219252103,-500.0,0.00011643,2]
[352660321,1739219252129,-655.63,0.00011643,2]
[352660322,1739219252155,-659.07,0.00011643,2]
[352660323,1739219252183,-508.51,0.00011643,2]
[352660324,1739219252208,-500.0,0.00011643,2]
[352660325,1739219252233,-500.0,0.00011643,2]
[352660326,1739219252268,-1561.2,0.00011643,2]
[352660327,1739219252294,-513.85,0.00011643,2]
[352660328,1739219252319,-500.0,0.00011643,2]
[352660329,1739219252344,-500.0,0.00011643,2]
[352660330,1739219252368,-500.0,0.00011643,2]
[352660331,1739219252394,-500.0,0.00011643,2]
[352660332,1739219252421,-500.0,0.00011643,2]
[352660333,1739219252448,-687.08,0.00011643,2]
[352660334,1739219252474,-500.0,0.00011643,2]
[352660335,1739219252499,-688.62,0.00011643,2]
[352660336,1739219252524,-816.41,0.00011643,2]
[352660337,1739219252550,-500.0,0.00011643,2]
[352660338,1739219252575,-6312.45,0.00011643,2]
[352660339,1739219252603,-500.0,0.00011643,2]
[352660340,1739219252629,-500.0,0.00011643,2]
[352660341,1739219252654,-500.0,0.00011643,2]
[352660342,1739219252680,-516.73243931,0.00011669,2]
[352660343,1739219252703,-500.0,0.00011691,2]
[352660344,1739219252728,-1454.15,0.00011699,2]
[352660345,1739219252751,-500.0,0.00011702,2]
[352660346,1739219252775,-590.18468502,0.00011717,2]
[352660347,1739219252798,-164.46969164,0.00011717,2]
[352660348,1739219252820,-500.0,0.00011732,2]
[352660349,1739219252842,-500.0,0.00011732,2]
[352660350,1739219252865,-160.72685387,0.00011769,2]
[352660351,1739219252887,-500.0,0.00011769,2]
[352660352,1739219252915,-500.0,0.00011779,2]
[352660353,1739219252940,-500.0,0.00011779,2]
[352660354,1739219252963,-500.0,0.00011779,2]
[352660355,1739219252988,-2975.74,0.00011779,2]
[352660356,1739219253015,-500.0,0.00011779,2]
[352660357,1739219253040,-581.4008476,0.00011779,2]
[352660358,1739219253067,-3081.78,0.00011779,2]
[352660359,1739219253092,-500.0,0.00011779,2]
[352660360,1739219253119,-500.0,0.0001178,2]
[352660361,1739219253145,-500.0,0.0001178,2]
[352660362,1739219253174,-619.35334932,0.0001178,2]
[352660363,1739219253200,-500.0,0.0001178,2]
[352660364,1739219253227,-500.0,0.0001178,2]
[352660365,1739219253256,-500.0,0.0001178,2]
[352660366,1739219253282,-500.0,0.0001178,2]
[352660367,1739219253309,-500.0,0.0001178,2]
[352660368,1739219253341,-500.0,0.0001178,2]
[352660369,1739219253367,-1213.78,0.0001178,2]
[352660370,1739219253394,-171.13,0.0001178,2]
[352660371,1739219253423,-500.0,0.0001178,2]
[352660372,1739219253450,-500.0,0.0001178,2]
[352660373,1739219253477,-453.96807694,0.0001178,2]
[352660374,1739219253504,-500.0,0.0001178,2]
[352660375,1739219253530,-655.63,0.0001178,2]
[352660376,1739219253556,-659.07,0.0001178,2]
[352660377,1739219253580,-508.51,0.0001178,2]
[352660378,1739219253604,-500.0,0.0001178,2]
[352660379,1739219253629,-500.0,0.0001178,2]
[352660380,1739219253655,-1561.2,0.0001178,2]
[352660381,1739219253682,-161.96407671,0.0001178,2]
[352660382,1739219253709,-500.0,0.0001178,2]
[352660383,1739219253735,-500.0,0.0001178,2]
[352660384,1739219253762,-500.0,0.0001178,2]
[352660385,1739219253788,-500.0,0.0001178,2]
[352660386,1739219253815,-687.08,0.0001178,2]
[352660387,1739219253844,-688.62,0.0001178,2]
[352660388,1739219253871,-500.0,0.0001178,2]
[352660389,1739219253899,-816.41,0.0001178,2]
[352660390,1739219253927,-500.0,0.0001178,2]
[352660391,1739219253957,-6312.45,0.0001178,2]
[352660392,1739219253988,-500.0,0.0001178,2]
[352660393,1739219254015,-500.0,0.0001178,2]
[352660394,1739219254042,-500.0,0.0001178,2]
[352660395,1739219254071,-500.0,0.00011896,2]
[352660396,1739219254100,-1454.15,0.00011915,2]
[352660397,1739219254130,-500.0,0.00011916,2]
[352660398,1739219254157,-500.0,0.00011916,2]
[352660399,1739219254291,-500.0,0.00011916,2]
[352660400,1739219254322,-500.0,0.00011916,2]
[352660401,1739219254355,-2975.74,0.00011916,2]
[352660402,1739219254384,-500.0,0.00011916,2]
[352660403,1739219254414,-3081.78,0.00011916,2]
[352660404,1739219254445,-500.0,0.00011916,2]
[352660405,1739219254477,-500.0,0.00011917,2]
[352660406,1739219254506,-500.0,0.00011917,2]
[352660407,1739219254535,-323.38,0.00011917,2]
[352660408,1739219254564,-500.0,0.00011917,2]
[352660409,1739219254593,-500.0,0.00011917,2]
[352660410,1739219254622,-500.0,0.00011917,2]
[352660411,1739219254649,-500.0,0.00011917,2]
[352660412,1739219254678,-500.0,0.00011917,2]
[352660413,1739219254707,-1213.78,0.00011917,2]
[352660414,1739219254734,-500.0,0.00011917,2]
[352660415,1739219254762,-500.0,0.00011917,2]
[352660416,1739219254789,-500.0,0.00011917,2]
[352660417,1739219254817,-655.63,0.00011917,2]
[352660418,1739219254845,-659.07,0.00011917,2]
[352660419,1739219254871,-508.51,0.00011917,2]
[352660420,1739219254896,-500.0,0.00011917,2]
[352660421,1739219254922,-500.0,0.00011917,2]
[352660422,1739219254949,-1561.2,0.00011917,2]
[352660423,1739219254978,-500.0,0.00011917,2]
[352660424,1739219255002,-500.0,0.00011917,2]
[352660425,1739219255026,-500.0,0.00011917,2]
[352660426,1739219255050,-318.21639071,0.00011917,2]
[352660427,1739219255075,-687.08,0.00011917,2]
[352660428,1739219255100,-688.62,0.00011917,2]
[352660429,1739219255124,-500.0,0.00011917,2]
[352660430,1739219255150,-816.41,0.00011917,2]
[352660431,1739219255175,-231.00609135,0.00011917,2]
[352660432,1739219255201,-6312.45,0.00011917,2]
[352660433,1739219255226,-500.0,0.00011917,2]
[352660434,1739219255255,-500.0,0.00011917,2]
[352660435,1739219255280,-500.0,0.00011917,2]
[352660436,1739219255303,-917.34344126,0.00011966,2]
[352660437,1739219255327,-1000.0,0.00011976,2]
[352660438,1739219255349,-7864.0,0.00012,2]
[352660439,1739219255372,-511.71832837,0.00012037,2]
[352660440,1739219255397,-500.0,0.00012053,2]
[352660441,1739219255422,-500.0,0.00012053,2]
[352660442,1739219255445,-500.0,0.00012053,2]
[352660443,1739219255472,-2975.74,0.00012053,2]
[352660444,1739219255496,-1454.15,0.00012053,2]
[352660445,1739219255520,-500.0,0.00012053,2]
[352660446,1739219255545,-3081.78,0.00012053,2]
[352660447,1739219255569,-500.0,0.00012053,2]
[352660448,1739219255591,-602.11021612,0.00012054,2]
[352660449,1739219255613,-500.0,0.00012054,2]
[352660450,1739219255636,-500.0,0.00012054,2]
[352660451,1739219255661,-500.0,0.00012054,2]
[352660452,1739219255684,-500.0,0.00012054,2]
[352660453,1739219255708,-500.0,0.00012054,2]
[352660454,1739219255732,-500.0,0.00012054,2]
[352660455,1739219255756,-1213.78,0.00012054,2]
[352660456,1739219255780,-500.0,0.00012054,2]
[352660457,1739219255804,-500.0,0.00012054,2]
[352660458,1739219255827,-473.39349741,0.00012054,2]
[352660459,1739219255851,-655.63,0.00012054,2]
[352660460,1739219255877,-659.07,0.00012054,2]
[352660461,1739219255901,-508.51,0.00012054,2]
[352660462,1739219255925,-500.0,0.00012054,2]
[352660463,1739219255950,-500.0,0.00012054,2]
[352660464,1739219255975,-1561.2,0.00012054,2]
[352660465,1739219255999,-500.0,0.00012054,2]
[352660466,1739219256025,-617.71339806,0.00012054,2]
[352660467,1739219256049,-500.0,0.00012054,2]
[352660468,1739219256074,-687.08,0.00012054,2]
[352660469,1739219256099,-688.62,0.00012054,2]
[352660470,1739219256122,-500.0,0.00012054,2]
[352660471,1739219256146,-816.41,0.00012054,2]
[352660472,1739219256171,-6312.45,0.00012054,2]
[352660473,1739219256196,-500.0,0.00012054,2]
[352660474,1739219256221,-500.0,0.00012054,2]
[352660475,1739219256245,-500.0,0.00012054,2]
[352660476,1739219256272,-323.31,0.0001219,2]
[352660477,1739219256296,-628.66,0.0001219,2]
[352660478,1739219256320,-500.0,0.0001219,2]
[352660479,1739219256345,-500.0,0.0001219,2]
[352660480,1739219256371,-2975.74,0.0001219,2]
[352660481,1739219256396,-500.0,0.0001219,2]
[352660482,1739219256422,-3081.78,0.0001219,2]
[352660483,1739219256446,-500.0,0.0001219,2]
[352660484,1739219256468,-345.33,0.00012191,2]
[352660485,1739219256491,-500.0,0.00012191,2]
[352660486,1739219256515,-500.0,0.00012191,2]
[352660487,1739219256538,-648.22878735,0.00012191,2]
[352660488,1739219256561,-500.0,0.00012191,2]
[352660489,1739219256586,-500.0,0.00012191,2]
[352660490,1739219256609,-1213.78,0.00012191,2]
[352660491,1739219256639,-500.0,0.00012191,2]
[352660492,1739219256663,-500.0,0.00012191,2]
[352660493,1739219256687,-655.63,0.00012191,2]
[352660494,1739219256712,-659.07,0.00012191,2]
[352660495,1739219256735,-508.51,0.00012191,2]
[352660496,1739219256760,-490.93,0.00012191,2]
[352660497,1739219256784,-500.0,0.00012191,2]
[352660498,1739219256808,-1561.2,0.00012191,2]
[352660499,1739219256832,-500.0,0.00012191,2]
[352660500,1739219256856,-500.0,0.00012191,2]
[352660501,1739219256881,-687.08,0.00012191,2]
[352660502,1739219256907,-688.62,0.00012191,2]
[352660503,1739219256933,-260.5,0.00012191,2]
[352660504,1739219256958,-816.41,0.00012191,2]
[352660505,1739219256983,-6312.45,0.00012191,2]
[352660506,1739219257008,-500.0,0.00012191,2]
[352660507,1739219257117,-500.0,0.00012191,2]
[352660508,1739219257144,-578.08,0.00012191,2]
[352660509,1739219257168,-1500.0,0.0001225,2]
[352660510,1739219257192,-305.74029623,0.0001228,2]
[352660511,1739219257215,-1000.0,0.00012317,2]
[352660512,1739219257239,-471.76,0.00012327,2]
[352660513,1739219257271,-2975.74,0.00012327,2]
[352660514,1739219257296,-500.0,0.00012327,2]
[352660515,1739219257323,-3081.78,0.00012327,2]
[352660516,1739219257348,-500.0,0.00012327,2]
[352660517,1739219257372,-500.0,0.00012328,2]
[352660518,1739219257396,-433.02,0.00012328,2]
[352660519,1739219257421,-500.0,0.00012328,2]
[352660520,1739219257445,-500.0,0.00012328,2]